fUSD/lending_fUSD_20260521
["ID","MTS","AMOUNT","RATE_DAILY","PERIOD"]
[422745666,1779343833000,-152.0,0.00026124,2]
[422745665,1779343833000,-151.0,0.00026124,2]
[422745668,1779343833000,-578.20924308,0.00026124,2]
[422745669,1779343833000,-174.61919141,0.00026124,2]
[422745664,1779343833000,-601.3376128,0.00026124,2]
[422745670,1779343833000,-174.61919141,0.00026124,2]
[422745706,1779343837000,-8479.28673679,0.00019646,2]
[422745705,1779343837000,-7295.89671165,0.00019646,2]
[422745707,1779343837000,-1754.58005086,0.00019646,2]
[422745708,1779343837000,-6584.6165007,0.00019646,2]
[422745710,1779343837000,-500.0,0.00025917,2]
[422745709,1779343837000,-724.86,0.00023913,2]
[422745711,1779343837000,-1054.568928,0.00026179,2]
[422745713,1779343837000,-8565.75555911,0.00026234,2]
[422745714,1779343837000,-151.0,0.00026234,2]
[422745712,1779343837000,-151.0,0.00026179,2]
[422745715,1779343838000,-8882.6885148,0.00026289,2]
[422745720,1779343838000,-294.400006,0.00026299,2]
[422745721,1779343838000,-693.42697033,0.00026299,2]
[422745717,1779343838000,-233.5,0.00026296,2]
[422745718,1779343838000,-1520.54845681,0.00026299,2]
[422745719,1779343838000,-526.5244968,0.00026299,2]
[422745716,1779343838000,-151.0,0.00026289,2]
[422745800,1779343840000,-67.54380539,0.00026299,10]
[422745799,1779343840000,-147.65745203,0.00026299,2]
[422745797,1779343840000,-256.73781653,0.00026179,10]
[422745798,1779343840000,-85.26218347,0.00026179,10]
[422745820,1779343843000,-10.82899086,0.00026299,10]
[422745819,1779343843000,-200.0,0.00025108,2]
[422745821,1779343843000,-919.62720375,0.00026299,10]
[422745823,1779343843000,-4063.46016955,0.00026344,2]
[422745822,1779343843000,-1057.0,0.00026299,10]
[422745818,1779343843000,-200.0,0.00024317,2]
[422745846,1779343845000,-1223.27344239,0.00026344,2]
[422745844,1779343845000,-570.0,0.00025767,2]
[422745845,1779343845000,-570.0,0.00026315,2]
[422745843,1779343845000,-931.0,0.00020681,2]
[422745841,1779343845000,-509.0,0.00017681,2]
[422745842,1779343845000,-422.0,0.00017681,2]
[422745860,1779343864000,3450.0,0.00028767,120]
[422745861,1779343871000,500.0,0.00027561,120]
[422745863,1779343908000,3082.0,0.00028767,120]
[422745866,1779344062000,269.502,0.00028639,120]
[422745868,1779344074000,2294.2,0.0002876,120]
[422745869,1779344112000,214.0,0.00026278,120]
[422745870,1779344113000,214.0,0.00027591,120]
[422745871,1779344132000,191.0,0.00026411,120]
[422745872,1779344134000,191.0,0.00027732,120]
[422745879,1779344196000,10000.0,0.00028767,120]
[422745891,1779344317000,500.0,0.00027561,120]
[422745890,1779344317000,500.0,0.00027561,120]
[422745898,1779344407000,160.0,0.00026586,120]
[422745899,1779344409000,160.0,0.00027915,120]
[422745903,1779344465000,500.0,0.00027561,120]
[422745905,1779344485000,1196.0,0.00028767,120]
[422745912,1779344565000,500.0,0.00027561,120]
[422745913,1779344566000,639.52,0.00027561,120]
[422745929,1779344706000,160.0,0.00026643,120]
[422745930,1779344707000,160.0,0.00027975,120]
[422745950,1779344876000,2868.8,0.0002876,120]
[422745959,1779344942000,1000.0,0.00028766,120]
[422745961,1779344949000,-340.16,0.00010914,2]
[422745963,1779344949000,-340.16,0.00011466,2]
[422745962,1779344949000,-2861.10421313,0.000114,2]
[422745967,1779344949000,-340.16,0.00013121,2]
[422745966,1779344949000,-340.16,0.0001257,2]
[422745965,1779344949000,-340.16,0.00012018,2]
[422745968,1779344949000,-184.57,0.00013457,2]
[422745964,1779344949000,-407.87164738,0.000119,2]
[422745973,1779344976000,200.0,0.000284,120]
[422745981,1779345010000,162.0,0.00026784,120]
[422745982,1779345012000,162.0,0.00028123,120]
[422745983,1779345015000,400.0,0.000284,120]
[422745992,1779345031000,-152.25777302,0.00013699,2]
[422745993,1779345031000,-14.40222698,0.00013699,2]
[422745995,1779345031000,-134.10143377,0.00013708,2]
[422745994,1779345031000,-200.0,0.00013699,2]
[422745991,1779345031000,-340.16,0.00013673,2]
[422746019,1779345032000,-166.66,0.00013994,2]
[422746021,1779345032000,-250.0,0.00014,2]
[422746023,1779345032000,-18062.4229,0.00014042,2]
[422746014,1779345032000,-319.79084614,0.00013745,2]
[422746016,1779345032000,-887.32,0.00013799,2]
[422746031,1779345032000,-166.66,0.0001429,2]
[422746044,1779345032000,-3107.8027,0.000149,2]
[422746029,1779345032000,-200.0,0.00014274,2]
[422746042,1779345032000,-150.0,0.00014899,2]
[422746040,1779345032000,-340.16,0.00014777,2]
[422746018,1779345032000,-1200.0,0.00013854,2]
[422746046,1779345032000,-2000.0,0.000149,2]
[422746038,1779345032000,-166.66,0.00014438,2]
[422746035,1779345032000,-150.0,0.000144,15]
[422746060,1779345032000,-2500.0,0.00015041,2]
[422746048,1779345032000,-99151.7967,0.000149,2]
[422746064,1779345032000,-150.0,0.00015041,2]
[422746050,1779345032000,-2500.0,0.000149,2]
[422746033,1779345032000,-215.89,0.00014354,2]
[422746027,1779345032000,-340.16,0.00014225,2]
[422746002,1779345032000,-300.0,0.00013725,2]
[422746015,1779345032000,-206.16602365,0.00013745,2]
[422745996,1779345032000,-26.97856623,0.00013708,2]
[422745997,1779345032000,-300.0,0.00013725,2]
[422746062,1779345032000,-600.0,0.00015041,2]
[422745998,1779345032000,-300.0,0.00013725,2]
[422746000,1779345032000,-102.14856623,0.00013725,2]
[422746001,1779345032000,-300.0,0.00013725,2]
[422745999,1779345032000,-197.85143377,0.00013725,2]
[422746003,1779345032000,-300.0,0.00013725,2]
[422746004,1779345032000,-295.37321479,0.00013725,2]
[422746006,1779345032000,-1735.47821898,0.00013745,2]
[422746010,1779345032000,-1231.54229022,0.00013745,2]
[422746011,1779345032000,-600.0,0.00013745,2]
[422746008,1779345032000,-2500.0,0.00013745,2]
[422746009,1779345032000,-1402.79677456,0.00013745,2]
[422746007,1779345032000,-764.52178102,0.00013745,2]
[422746012,1779345032000,-600.0,0.00013745,2]
[422746013,1779345032000,-600.0,0.00013745,2]
[422746005,1779345032000,-2500.0,0.00013745,2]
[422746025,1779345032000,-166.66,0.00014142,2]
[422746017,1779345032000,-166.66,0.00013846,2]
[422746055,1779345032000,-5491.11687253,0.00015,2]
[422746119,1779345032000,-150.99,0.00019339,2]
[422746053,1779345032000,-105565.63782369,0.00015,2]
[422746103,1779345032000,-2351.0,0.00016763,2]
[422746102,1779345032000,-340.16,0.00016433,2]
[422746105,1779345032000,-433.0,0.00017253,2]
[422746104,1779345032000,-340.16,0.00016985,2]
[422746109,1779345032000,-2000.0,0.0001797,2]
[422746110,1779345032000,-350.0,0.00018,2]
[422746107,1779345032000,-340.16,0.00017537,2]
[422746106,1779345032000,-2001.36083017,0.00017456,2]
[422746098,1779345032000,-5491.11687253,0.000161,2]
[422746108,1779345032000,-184.57,0.00017943,2]
[422746113,1779345032000,-3900.24275734,0.00018464,2]
[422746112,1779345032000,-3292.0,0.0001844,2]
[422746114,1779345032000,-736.0,0.00018564,2]
[422746116,1779345032000,-340.16,0.00019192,2]
[422746115,1779345032000,-340.16,0.0001864,2]
[422746118,1779345032000,-299.99,0.00019339,7]
[422746120,1779345032000,-6223.2502563,0.00019339,2]
[422746070,1779345032000,-5491.11687253,0.000152,2]
[422746111,1779345032000,-340.16,0.00018088,2]
[422746100,1779345032000,-5491.11687253,0.000162,2]
[422746117,1779345032000,-3743.67,0.00019339,2]
[422746097,1779345032000,-255.0,0.00016031,2]
[422746099,1779345032000,-401.12803627,0.000161,2]
[422746051,1779345032000,-2001.36083019,0.000149,2]
[422746068,1779345032000,-300.0,0.00015041,2]
[422746066,1779345032000,-300.0,0.00015041,2]
[422746058,1779345032000,-34992.60496033,0.00015,2]
[422746072,1779345032000,-1680.0,0.00015239,2]
[422746075,1779345032000,-340.16,0.00015329,2]
[422746082,1779345032000,-1644.44351859,0.000156,2]
[422746087,1779345032000,-5491.11687253,0.000158,2]
[422746074,1779345032000,-5491.11687253,0.000153,2]
[422746084,1779345032000,-305.5524,0.000157,2]
[422746089,1779345032000,-340.16,0.00015881,2]
[422746079,1779345032000,-3846.67335394,0.000156,2]
[422746086,1779345032000,-184.57,0.000157,2]
[422746077,1779345032000,-5491.11687253,0.000155,2]
[422746101,1779345032000,-5491.11687253,0.000164,2]
[422746093,1779345032000,-2000.0,0.00015973,2]
[422746095,1779345032000,-300.0,0.00016,2]
[422746096,1779345032000,-401.12803627,0.00016,2]
[422746091,1779345032000,-5491.11687253,0.000159,2]
[422746129,1779345038000,-500.0,0.00019338,2]
[422746128,1779345038000,-391.14455389,0.00019338,2]
[422746127,1779345038000,-108.85544611,0.00019338,2]
[422746122,1779345038000,-185.18655282,0.00019338,2]
[422746121,1779345038000,-625.0,0.00017698,2]
[422746124,1779345038000,-430.05929318,0.00019338,2]
[422746125,1779345038000,-500.0,0.00019338,2]
[422746123,1779345038000,-69.94070682,0.00019338,2]
[422746131,1779345038000,-500.0,0.00019338,2]
[422746126,1779345038000,-275.7878097,0.00019338,2]
[422746132,1779345038000,-500.0,0.00019338,2]
[422746135,1779345038000,-500.0,0.00019338,2]
[422746133,1779345038000,-500.0,0.00019338,2]
[422746130,1779345038000,-500.0,0.00019338,2]
[422746143,1779345038000,-500.0,0.00019338,2]
[422746144,1779345038000,-23.37254191,0.00019338,2]
[422746137,1779345038000,-193.14455389,0.00019338,2]
[422746142,1779345038000,-500.0,0.00019338,2]
[422746140,1779345038000,-500.0,0.00019338,2]
[422746141,1779345038000,-500.0,0.00019338,2]
[422746138,1779345038000,-500.0,0.00019338,2]
[422746134,1779345038000,-500.0,0.00019338,2]
[422746136,1779345038000,-306.85544611,0.00019338,2]
[422746139,1779345038000,-500.0,0.00019338,2]
[422746164,1779345039000,-341.50517263,0.00019338,2]
[422746346,1779345040000,-500.0,0.00019338,2]
[422746340,1779345040000,-500.0,0.00019338,2]
[422746336,1779345040000,-500.0,0.00019338,2]
[422746338,1779345040000,-500.0,0.00019338,2]
[422746347,1779345040000,-500.0,0.00019338,2]
[422746342,1779345040000,-500.0,0.00019338,2]
[422746285,1779345040000,-137.3203005,0.00019338,2]
[422746281,1779345040000,-500.0,0.00019338,2]
[422746279,1779345040000,-135.12228546,0.00019338,2]
[422746283,1779345040000,-500.0,0.00019338,2]
[422746335,1779345040000,-466.6673778,0.00019338,2]
[422746349,1779345040000,-500.0,0.00019338,2]
[422746333,1779345040000,-362.6796995,0.00019338,2]
[422746351,1779345040000,-500.0,0.00019338,2]
[422746363,1779345040000,-500.0,0.00019338,2]
[422746355,1779345040000,-500.0,0.00019338,2]
[422746359,1779345040000,-500.0,0.00019338,2]
[422746353,1779345040000,-500.0,0.00019338,2]
[422746344,1779345040000,-500.0,0.00019338,2]
[422746357,1779345040000,-500.0,0.00019338,2]
[422746371,1779345040000,-1424.4697437,0.00019339,2]
[422746369,1779345040000,-500.0,0.00019338,2]
[422746367,1779345040000,-500.0,0.00019338,2]
[422746365,1779345040000,-500.0,0.00019338,2]
[422746361,1779345040000,-500.0,0.00019338,2]
[422746373,1779345040000,-8497.75299063,0.00019339,2]
[422746492,1779345043000,-1000.0,0.00019339,2]
[422746491,1779345043000,-1750.07751444,0.00019339,2]
[422746504,1779345046000,-251.68371297,0.00017698,2]
[422746514,1779345054000,500.0,0.00027747,120]
[422746515,1779345158000,500.0,0.0002801,120]
[422746516,1779345199000,898.9,0.00027747,120]
[422746524,1779345472000,861.44,0.00027747,120]
[422746596,1779345623000,2388.89,0.00027561,120]
[422746595,1779345623000,2388.89,0.00027561,120]
[422746597,1779345664000,169.44,0.00025094,120]
[422746598,1779345676000,2293.69,0.0002801,120]
[422746600,1779345679000,500.0,0.00027561,120]
[422746599,1779345679000,500.0,0.00027561,120]
[422746601,1779346140000,1000.0,0.00028765,120]
[422746603,1779346159000,-53.4645324,8.72e-05,2]
[422746602,1779346159000,-153.7,8.02e-05,2]
[422746610,1779346231000,-153.7,0.00011522,2]
[422746606,1779346231000,-100.2354676,8.72e-05,2]
[422746608,1779346231000,-153.7,0.00010121,2]
[422746607,1779346231000,-153.7,9.421e-05,2]
[422746611,1779346231000,-153.7,0.00012223,2]
[422746612,1779346231000,-153.7,0.00012923,2]
[422746613,1779346231000,-208.68854764,0.00013397,2]
[422746615,1779346231000,-150.0,0.00013999,2]
[422746614,1779346231000,-153.7,0.00013623,2]
[422746609,1779346231000,-153.7,0.00010822,2]
[422746644,1779346232000,-401.12803626,0.00016,2]
[422746656,1779346232000,-169.44,0.00016729,2]
[422746648,1779346232000,-176.41,0.0001627,2]
[422746651,1779346232000,-1831.19039369,0.00016417,2]
[422746653,1779346232000,-181.8,0.00016438,2]
[422746650,1779346232000,-433.0,0.00016323,2]
[422746646,1779346232000,-166.66,0.00016108,2]
[422746649,1779346232000,-190.1,0.00016323,2]
[422746647,1779346232000,-2326.58,0.00016138,2]
[422746645,1779346232000,-2206.13,0.00016078,2]
[422746652,1779346232000,-166.66,0.00016433,2]
[422746655,1779346232000,-2326.58,0.00016532,2]
[422746658,1779346232000,-1147.71,0.00016791,2]
[422746668,1779346232000,-166.66,0.00017084,2]
[422746659,1779346232000,-213.87094248,0.00016802,2]
[422746661,1779346232000,-200.0,0.00016831,2]
[422746671,1779346232000,-27286.3675,0.00017445,2]
[422746660,1779346232000,-587.0,0.00016802,2]
[422746657,1779346232000,-166.66,0.00016758,2]
[422746662,1779346232000,-658.0,0.00016906,2]
[422746664,1779346232000,-2326.58,0.00016925,2]
[422746666,1779346232000,-2351.0,0.00016939,2]
[422746670,1779346232000,-2326.58,0.00017319,2]
[422746669,1779346232000,-169.62,0.00017245,2]
[422746654,1779346232000,-1016.7,0.00016463,2]
[422746643,1779346232000,-300.0,0.00016,2]
[422746625,1779346232000,-153.7,0.00014324,2]
[422746642,1779346232000,-166.66,0.00015782,2]
[422746673,1779346232000,-650.0,0.00017591,2]
[422746616,1779346232000,-300.0,0.00013999,2]
[422746617,1779346232000,-300.0,0.00013999,2]
[422746620,1779346232000,-7451.33,0.00014,2]
[422746618,1779346232000,-1200.0,0.00013999,2]
[422746619,1779346232000,-300.0,0.00013999,2]
[422746621,1779346232000,-7451.33,0.00014,2]
[422746622,1779346232000,-7451.33,0.00014,2]
[422746623,1779346232000,-7451.33,0.00014,2]
[422746628,1779346232000,-500.0,0.00014999,2]
[422746627,1779346232000,-2293.69,0.00014999,2]
[422746624,1779346232000,-250.0,0.00014,2]
[422746626,1779346232000,-500.0,0.00014999,2]
[422746629,1779346232000,-500.0,0.00014999,2]
[422746631,1779346232000,-153.7,0.00015024,2]
[422746630,1779346232000,-500.0,0.00014999,2]
[422746632,1779346232000,-255.0,0.00015119,2]
[422746633,1779346232000,-420.0,0.00015337,2]
[422746634,1779346232000,-1680.0,0.00015399,2]
[422746636,1779346232000,-2000.0,0.00015627,2]
[422746638,1779346232000,-2169.55,0.00015676,2]
[422746640,1779346232000,-2326.58,0.00015744,2]
[422746637,1779346232000,-150.0,0.00015629,2]
[422746639,1779346232000,-153.7,0.00015725,2]
[422746635,1779346232000,-166.66,0.00015457,2]
[422746641,1779346232000,-159.66,0.00015744,2]
[422746675,1779346232000,-3659.37,0.00017728,5]
[422746708,1779346232000,-151.0,0.00018886,2]
[422746677,1779346232000,-9999.99,0.00017728,2]
[422746705,1779346232000,-244.40471323,0.00018886,2]
[422746707,1779346232000,-151.0,0.00018886,2]
[422746706,1779346232000,-200.0,0.00018886,2]
[422746711,1779346232000,-151.0,0.00018886,2]
[422746713,1779346232000,-151.0,0.00018886,2]
[422746710,1779346232000,-151.0,0.00018886,2]
[422746712,1779346232000,-151.0,0.00018886,2]
[422746709,1779346232000,-1734.62772924,0.00018886,2]
[422746714,1779346232000,-151.0,0.00018886,2]
[422746716,1779346232000,-151.0,0.00018886,2]
[422746715,1779346232000,-151.0,0.00018886,2]
[422746703,1779346232000,-1365.38873232,0.000187,2]
[422746718,1779346232000,-151.0,0.00018886,2]
[422746722,1779346232000,-151.0,0.00018886,2]
[422746719,1779346232000,-151.0,0.00018886,2]
[422746721,1779346232000,-151.0,0.00018886,2]
[422746724,1779346232000,-825.55,0.00019038,2]
[422746720,1779346232000,-151.0,0.00018886,2]
[422746672,1779346232000,-2000.0,0.00017581,2]
[422746725,1779346232000,-4126.22426869,0.00019138,2]
[422746726,1779346232000,-3956.78793459,0.00019138,2]
[422746727,1779346232000,-154.60034624,0.00019139,3]
[422746728,1779346232000,-1054.6298,0.00019139,2]
[422746729,1779346232000,-2000.0,0.00019139,2]
[422746717,1779346232000,-151.0,0.00018886,2]
[422746704,1779346232000,-151.0,0.00018886,2]
[422746723,1779346232000,-151.0,0.00018886,2]
[422746702,1779346232000,-834.31619463,0.000187,2]
[422746701,1779346232000,-3292.0,0.00018633,2]
[422746680,1779346232000,-834.31619463,0.00018,2]
[422746679,1779346232000,-3013.92,0.00017728,2]
[422746678,1779346232000,-10600.71,0.00017728,2]
[422746674,1779346232000,-628.0,0.00017639,2]
[422746682,1779346232000,-625.0,0.00018161,2]
[422746681,1779346232000,-1365.38873232,0.00018,2]
[422746684,1779346232000,-927.0,0.00018161,2]
[422746683,1779346232000,-1354.0,0.00018161,2]
[422746685,1779346232000,-1274.931,0.00018161,2]
[422746690,1779346232000,-27056.01,0.00018356,2]
[422746687,1779346232000,-3634.0,0.00018161,2]
[422746691,1779346232000,-834.31619463,0.000184,2]
[422746676,1779346232000,-520.64,0.00017728,2]
[422746688,1779346232000,-834.31619463,0.000182,2]
[422746686,1779346232000,-418.0,0.00018161,2]
[422746699,1779346232000,-571.18360882,0.00018533,2]
[422746698,1779346232000,-1365.38873232,0.000185,2]
[422746695,1779346232000,-6258.26538111,0.00018433,2]
[422746696,1779346232000,-2500.0,0.00018433,2]
[422746700,1779346232000,-2641.74,0.00018533,2]
[422746692,1779346232000,-1365.38873232,0.000184,2]
[422746693,1779346232000,-823.0,0.00018408,2]
[422746689,1779346232000,-1365.38873232,0.000182,2]
[422746694,1779346232000,-181.8,0.0001841,2]
[422746697,1779346232000,-834.31619463,0.000185,2]
[422746755,1779346233000,-1798.80895522,0.00019434,2]
[422746756,1779346233000,-7451.33,0.000195,2]
[422746763,1779346233000,-305.0,0.0002,2]
[422746757,1779346233000,-2000.0,0.00019534,2]
[422746759,1779346233000,-269.0,0.0002,2]
[422746760,1779346233000,-1590.0,0.0002,2]
[422746758,1779346233000,-1865.36488656,0.00019982,2]
[422746761,1779346233000,-249.0,0.0002,2]
[422746762,1779346233000,-485.0,0.0002,2]
[422746768,1779346233000,-181.8,0.00020381,2]
[422746764,1779346233000,-261.438058,0.0002,10]
[422746766,1779346233000,-181.8,0.00020177,2]
[422746767,1779346233000,-184.57,0.00020186,2]
[422746772,1779346233000,-6258.26538107,0.00020596,2]
[422746770,1779346233000,-1934.38338736,0.0002053,2]
[422746773,1779346233000,-218.13,0.00020681,2]
[422746769,1779346233000,-3791.0,0.00020496,2]
[422746754,1779346233000,-200.0,0.00019434,2]
[422746771,1779346233000,-161.08,0.00020563,2]
[422746765,1779346233000,-1152.0,0.00020167,2]
[422746753,1779346233000,-219.53407674,0.00019339,2]
[422746738,1779346233000,-3342.2324925,0.00019294,2]
[422746752,1779346233000,-237.59116772,0.00019339,2]
[422746775,1779346233000,-269.0,0.00021,2]
[422746730,1779346233000,-185.02695778,0.00019178,2]
[422746732,1779346233000,-239.02243449,0.00019178,2]
[422746734,1779346233000,-360.52417583,0.00019193,2]
[422746731,1779346233000,-191.87295522,0.00019178,2]
[422746735,1779346233000,-500.0,0.00019238,2]
[422746736,1779346233000,-825.55,0.00019238,2]
[422746733,1779346233000,-4843.17,0.00019178,2]
[422746737,1779346233000,-83060.6095,0.00019239,2]
[422746751,1779346233000,-153.0,0.00019339,2]
[422746739,1779346233000,-163.6703748,0.00019294,2]
[422746741,1779346233000,-486.8766658,0.00019294,2]
[422746742,1779346233000,-961.8392996,0.00019294,2]
[422746744,1779346233000,-82442.5630881,0.00019294,2]
[422746746,1779346233000,-2293.69,0.00019338,2]
[422746745,1779346233000,-500.0,0.00019338,2]
[422746747,1779346233000,-523.28200266,0.00019338,2]
[422746749,1779346233000,-500.0,0.00019338,2]
[422746750,1779346233000,-400.44866296,0.00019339,2]
[422746748,1779346233000,-500.0,0.00019338,2]
[422746740,1779346233000,-38395.836282,0.00019294,2]
[422746776,1779346233000,-1590.0,0.00021,2]
[422746743,1779346233000,-4657.7003247,0.00019294,2]
[422746778,1779346233000,-485.0,0.00021,2]
[422746804,1779346233000,-532.0,0.00022137,2]
[422746805,1779346233000,-334.0,0.00022137,2]
[422746803,1779346233000,-150.0,0.00022094,2]
[422746807,1779346233000,-181.8,0.00022353,2]
[422746806,1779346233000,-2157.14243826,0.00022174,2]
[422746822,1779346233000,-500.0,0.00023484,2]
[422746809,1779346233000,-9358.467035,0.00022506,2]
[422746808,1779346233000,-825.55,0.00022505,2]
[422746810,1779346233000,-208.81808143,0.00022722,2]
[422746801,1779346233000,-485.0,0.00022,2]
[422746812,1779346233000,-6258.26538107,0.00022759,2]
[422746818,1779346233000,-305.0,0.00023,2]
[422746816,1779346233000,-249.0,0.00023,2]
[422746815,1779346233000,-1590.0,0.00023,2]
[422746811,1779346233000,-2028.13862704,0.00022722,2]
[422746814,1779346233000,-269.0,0.00023,2]
[422746819,1779346233000,-2319.72410669,0.0002327,2]
[422746820,1779346233000,-4126.22426864,0.00023307,2]
[422746821,1779346233000,-2000.0,0.00023441,2]
[422746774,1779346233000,-169.44,0.00020911,2]
[422746813,1779346233000,-334.0,0.00022959,2]
[422746802,1779346233000,-305.0,0.00022,2]
[422746817,1779346233000,-485.0,0.00023,2]
[422746799,1779346233000,-1590.0,0.00022,2]
[422746777,1779346233000,-249.0,0.00021,2]
[422746800,1779346233000,-249.0,0.00022,2]
[422746779,1779346233000,-305.0,0.00021,2]
[422746783,1779346233000,-4126.22426864,0.00021223,2]
[422746780,1779346233000,-2005.9555727,0.00021078,2]
[422746781,1779346233000,-1354.0,0.00021161,2]
[422746784,1779346233000,-11315.07,0.00021273,2]
[422746785,1779346233000,-2000.0,0.00021487,2]
[422746787,1779346233000,-2080.17592889,0.00021626,2]
[422746786,1779346233000,-421.0,0.00021577,7]
[422746782,1779346233000,-783.754,0.00021161,2]
[422746790,1779346233000,-163.32420432,0.00021839,2]
[422746798,1779346233000,-269.0,0.00022,2]
[422746788,1779346233000,-289.50552802,0.00021797,2]
[422746796,1779346233000,-3956.78793458,0.00021933,2]
[422746797,1779346233000,-2169.55,0.00021947,2]
[422746795,1779346233000,-5000.0,0.00021918,2]
[422746794,1779346233000,-500.0,0.000219,7]
[422746793,1779346233000,-255.81728003,0.00021888,2]
[422746792,1779346233000,-213.18106669,0.00021888,2]
[422746789,1779346233000,-347.40663363,0.00021797,2]
[422746791,1779346233000,-195.98904518,0.00021839,2]
[422746865,1779346234000,-500.169552,0.00024658,2]
[422746870,1779346234000,-500.169552,0.00024658,2]
[422746867,1779346234000,-500.169552,0.00024658,2]
[422746866,1779346234000,-500.169552,0.00024658,2]
[422746862,1779346234000,-500.169552,0.00024658,2]
[422746864,1779346234000,-500.169552,0.00024658,2]
[422746859,1779346234000,-174.61919141,0.00024629,2]
[422746861,1779346234000,-500.169552,0.00024658,2]
[422746860,1779346234000,-1000.0,0.00024658,2]
[422746858,1779346234000,-174.61919141,0.00024629,2]
[422746868,1779346234000,-500.169552,0.00024658,2]
[422746851,1779346234000,-174.61919141,0.00024629,2]
[422746863,1779346234000,-500.169552,0.00024658,2]
[422746869,1779346234000,-500.169552,0.00024658,2]
[422746880,1779346234000,-500.169549,0.00024658,2]
[422746871,1779346234000,-500.169552,0.00024658,2]
[422746873,1779346234000,-500.169552,0.00024658,2]
[422746875,1779346234000,-500.169552,0.00024658,2]
[422746874,1779346234000,-500.169552,0.00024658,2]
[422746876,1779346234000,-500.169552,0.00024658,2]
[422746877,1779346234000,-500.169552,0.00024658,2]
[422746878,1779346234000,-500.169552,0.00024658,2]
[422746883,1779346234000,-151.0,0.00024739,2]
[422746879,1779346234000,-500.169552,0.00024658,2]
[422746882,1779346234000,-3956.78793458,0.00024729,2]
[422746881,1779346234000,-151.0,0.00024684,2]
[422746885,1779346234000,-151.0,0.00024849,2]
[422746848,1779346234000,-279.9045709,0.00024629,2]
[422746872,1779346234000,-500.169552,0.00024658,2]
[422746853,1779346234000,-578.20924308,0.00024629,2]
[422746824,1779346234000,-424.68531923,0.00023484,2]
[422746852,1779346234000,-174.61919141,0.00024629,2]
[422746823,1779346234000,-2293.69,0.00023484,2]
[422746826,1779346234000,-159.66,0.00023616,2]
[422746829,1779346234000,-229.769807,0.00023781,2]
[422746825,1779346234000,-500.0,0.00023484,2]
[422746827,1779346234000,-296.52,0.000237,3]
[422746830,1779346234000,-2405.55389863,0.00023818,2]
[422746828,1779346234000,-200.0,0.00023756,2]
[422746884,1779346234000,-151.0,0.00024794,2]
[422746832,1779346234000,-269.0,0.00024,2]
[422746834,1779346234000,-249.0,0.00024,2]
[422746833,1779346234000,-1590.0,0.00024,2]
[422746836,1779346234000,-305.0,0.00024,2]
[422746837,1779346234000,-1354.0,0.00024161,2]
[422746844,1779346234000,-639.9,0.00024445,2]
[422746839,1779346234000,-325.02,0.00024177,2]
[422746835,1779346234000,-485.0,0.00024,2]
[422746838,1779346234000,-2321.96,0.00024174,2]
[422746842,1779346234000,-487.0,0.00024445,2]
[422746840,1779346234000,-181.8,0.00024324,2]
[422746841,1779346234000,-2494.55939288,0.00024366,2]
[422746843,1779346234000,-487.0,0.00024445,2]
[422746845,1779346234000,-200.0,0.00024547,2]